[Event "Austrian Youth-ch U18 Boys 2024"]
[Site "Leibnitz"]
[Date "2024.03.28"]
[Round "7.5"]
[White "Lerch, Johannes"]
[Black "Marakovits, Nico"]
[Result "1/2-1/2"]
[ECO "B09"]
[WhiteElo "2258"]
[BlackElo "2234"]
[Annotator "RC"]
[PlyCount "28"]
[EventDate "2024.03.23"]
[EventType "swiss"]
[EventCountry "AUT"]
[SourceTitle "playchess.com"]
[Source "ChessBase"]
[SourceQuality "1"]
[TimeControl "5400+30"]

1. e4 {[%emt 0:00:05]} d6 {[%emt 0:00:24]} 2. d4 {[%emt 0:01:55]} Nf6 {[%emt 0:00:33]} 3. Nc3 {[%emt 0:00:08]} g6 {[%emt 0:04:20]} 4. f4 {[%emt 0:04:14]} Bg7 {[%emt 0:01:28]} 5. Nf3 {[%emt 0:01:31]} c5 {[%emt 0:06:15]} 6. Bb5+ {[%emt 0:08:49]} Bd7 {[%emt 0:03:51]} 7. e5 {[%emt 0:02:24]} Ng4 {[%emt 0:02:38]} 8. e6 {[%emt 0:04:29]} fxe6 {[%emt 0:02:14]} 9. Ng5 {[%emt 0:05:57]} Bxb5 {[%emt 0:00:18]} 10. Nxe6 {[%emt 0:00:30]} Bxd4 {[%emt 0:00:05]} 11. Nxd8 {[%emt 0:00:15]} Bf2+ {[%emt 0:00:06]} 12. Kd2 {[%emt 0:00:05]} Be3+ {[%emt 0:00:05]} 13. Ke1 {[%emt 0:00:07]} Bf2+ {[%emt 0:00:06]} 14. Kd2 {[%emt 0:00:04]} Be3+ {[%emt 0:00:05]} 1/2-1/2

[Event "Austrian Youth-ch U18 Boys 2024"]
[Site "Leibnitz"]
[Date "2024.03.28"]
[Round "7.6"]
[White "Wendl, Philipp"]
[Black "Wagner, Leopold Franziskus"]
[Result "1-0"]
[ECO "D35"]
[WhiteElo "2237"]
[BlackElo "2228"]
[Annotator "RC"]
[PlyCount "109"]
[EventDate "2024.03.23"]
[EventType "swiss"]
[EventCountry "AUT"]
[SourceTitle "playchess.com"]
[Source "ChessBase"]
[SourceQuality "1"]
[TimeControl "5400+30"]

1. c4 {[%emt 0:00:05]} e6 {[%emt 0:00:09]} 2. Nc3 {[%emt 0:00:06]} d5 {[%emt 0:00:05]} 3. d4 {[%emt 0:00:05]} Nf6 {[%emt 0:00:05]} 4. cxd5 {[%emt 0:00:06]} exd5 {[%emt 0:00:05]} 5. Bg5 {[%emt 0:00:07]} Be7 {[%emt 0:00:14]} 6. e3 {[%emt 0:00:12]} O-O {[%emt 0:00:14]} 7. Bd3 {[%emt 0:00:26]} Re8 {[%emt 0:00:16]} 8. Qc2 {[%emt 0:00:29]} h6 {[%emt 0:00:11]} 9. Bh4 {[%emt 0:00:05]} c5 {[%emt 0:00:15]} 10. dxc5 {[%emt 0:01:22]} d4 {[%emt 0:00:10]} 11. exd4 {[%emt 0:04:08]} Qxd4 {[%emt 0:03:18]} 12. Nf3 {[%emt 0:02:49]} Qxc5 {[%emt 0:05:54]} 13. O-O {[%emt 0:00:50]} Bg4 {[%emt 0:04:24]} 14. Bxf6 {[%emt 0:04:11]} Bxf6 {[%emt 0:00:20]} 15. Ne4 {[%emt 0:00:06]} Qxc2 {[%emt 0:00:11]} 16. Nxf6+ {[%emt 0:00:06]} gxf6 {[%emt 0:00:03]} 17. Bxc2 {[%emt 0:00:05]} Nc6 {[%emt 0:09:59]} 18. Bd1 {[%emt 0:09:58]} Rad8 {[%emt 0:04:42]} 19. b3 {[%emt 0:07:05]} Re7 {[%emt 0:19:12]} 20. Rc1 {[%emt 0:05:14]} Bxf3 {[%emt 0:00:52]} 21. Bxf3 {[%emt 0:00:34]} Nd4 {[%emt 0:00:05]} 22. Rc3 {[%emt 0:00:31]} Ne2+ {[%emt 0:02:57]} 23. Bxe2 {[%emt 0:01:40]} Rxe2 {[%emt 0:00:01]} 24. a4 {[%emt 0:00:09]} Red2 {[%emt 0:02:34]} 25. Rg3+ {[%emt 0:04:50]} Kf8 {[%emt 0:00:43]} 26. h3 {[%emt 0:01:10]} Rd1 {[%emt 0:01:22]} 27. Rxd1 {[%emt 0:00:36]} Rxd1+ {[%emt 0:00:15]} 28. Kh2 {[%emt 0:00:04]} Rd4 {[%emt 0:11:16]} 29. Rg4 {[%emt 0:03:19]} Rxg4 {[%emt 0:11:30]} 30. hxg4 {[%emt 0:00:41]} Ke7 {[%emt 0:00:00]} 31. Kg3 {[%emt 0:03:27]} Kd6 {[%emt 0:00:31]} 32. Kf4 {[%emt 0:04:43]} Kc5 {[%emt 0:00:05]} 33. Kf5 {[%emt 0:00:04]} Kb4 {[%emt 0:00:03]} 34. Kxf6 {[%emt 0:00:06]} Kxb3 {[%emt 0:00:03]} 35. f4 {[%emt 0:00:47]} Kxa4 {[%emt 0:00:07]} 36. g5 {[%emt 0:00:13]} hxg5 {[%emt 0:00:06]} 37. fxg5 {[%emt 0:00:03]} b5 {[%emt 0:00:11]} 38. Kxf7 {[%emt 0:00:03]} b4 {[%emt 0:00:04]} 39. g6 {[%emt 0:00:07]} b3 {[%emt 0:00:05]} 40. g7 {[%emt 0:00:05]} b2 {[%emt 0:00:05]} 41. g8=Q {[%emt 0:00:03]} b1=Q {[%emt 0:00:05]} 42. Qe8+ {[%emt 0:02:54]} Qb5 {[%emt 0:02:06]} 43. g4 {[%emt 0:00:33]} a5 {[%emt 0:10:19]} 44. g5 {[%emt 0:00:07]} Qxe8+ {[%emt 0:01:19]} 45. Kxe8 {[%emt 0:00:02]} Kb3 {[%emt 0:00:07]} 46. g6 {[%emt 0:00:07]} a4 {[%emt 0:00:03]} 47. g7 {[%emt 0:00:03]} a3 {[%emt 0:00:04]} 48. g8=Q+ {[%emt 0:00:04]} Kb2 {[%emt 0:00:07]} 49. Qg2+ {[%emt 0:00:24]} Kb1 {[%emt 0:00:10]} 50. Qf1+ {[%emt 0:00:08]} Kb2 {[%emt 0:00:04]} 51. Qe2+ {[%emt 0:00:06]} Kb3 {[%emt 0:00:13]} 52. Qd1+ {[%emt 0:00:10]} Kb2 {[%emt 0:00:04]} 53. Qd2+ {[%emt 0:00:04]} Ka1 {[%emt 0:00:26]} 54. Qc2 {[%emt 0:00:06]} a2 {[%emt 0:00:07]} 55. Qc1# {[%emt 0:00:03]} 1-0

[Event "Austrian Youth-ch U18 Boys 2024"]
[Site "Leibnitz"]
[Date "2024.03.28"]
[Round "7.7"]
[White "Leitner, Thomas"]
[Black "Hengl, Philip"]
[Result "0-1"]
[ECO "E00"]
[WhiteElo "1907"]
[BlackElo "2145"]
[Annotator "RC"]
[PlyCount "54"]
[EventDate "2024.03.23"]
[EventType "swiss"]
[EventCountry "AUT"]
[SourceTitle "playchess.com"]
[Source "ChessBase"]
[SourceQuality "1"]
[TimeControl "5400+30"]

1. d4 {[%emt 0:00:03]} Nf6 {[%emt 0:00:05]} 2. c4 {[%emt 0:00:08]} e6 {[%emt 0:00:06]} 3. a3 {[%emt 0:00:24]} h6 {[%emt 0:01:56]} 4. Nc3 {[%emt 0:01:05]} d5 {[%emt 0:00:25]} 5. Bf4 {[%emt 0:00:43]} Be7 {[%emt 0:08:44]} 6. e3 {[%emt 0:01:53]} O-O {[%emt 0:00:51]} 7. h3 {[%emt 0:02:20]} dxc4 {[%emt 0:04:15]} 8. Bxc4 {[%emt 0:00:46]} a6 {[%emt 0:00:12]} 9. Nf3 {[%emt 0:02:40]} b5 {[%emt 0:01:01]} 10. Bb3 {[%emt 0:01:27]} Bb7 {[%emt 0:01:23]} 11. Qe2 {[%emt 0:03:22]} c5 {[%emt 0:02:39]} 12. Rd1 {[%emt 0:03:15]} cxd4 {[%emt 0:02:49]} 13. Rxd4 {[%emt 0:05:14]} Qb6 {[%emt 0:01:53]} 14. O-O {[%emt 0:04:33]} Nc6 {[%emt 0:01:23]} 15. Rd2 {[%emt 0:01:43]} Na5 {[%emt 0:09:23]} 16. Ba2 {[%emt 0:04:05]} Rfd8 {[%emt 0:01:36]} 17. Rfd1 {[%emt 0:01:54]} Rxd2 {[%emt 0:01:12]} 18. Rxd2 {[%emt 0:02:26]} Rc8 {[%emt 0:01:33]} 19. Rd3 {[%emt 0:05:30]} Nc4 {[%emt 0:10:21]} 20. Ne5 {[%emt 0:05:13]} Nxe5 {[%emt 0:00:24]} 21. Bxe5 {[%emt 0:00:17]} Qc6 {[%emt 0:00:16]} 22. f3 {[%emt 0:03:08]} a5 {[%emt 0:08:51]} 23. Qd2 {[%emt 0:06:30]} b4 {[%emt 0:06:07]} 24. axb4 {[%emt 0:00:21]} axb4 {[%emt 0:00:46]} 25. Ne2 {[%emt 0:00:42]} Ba6 {[%emt 0:05:54]} 26. Rd4 {[%emt 0:05:20]} Qb5 {[%emt 0:00:55]} 27. Ng3 {[%emt 0:01:38]} Qxe5 {[%emt 0:00:18]} 0-1

[Event "Austrian Youth-ch U18 Boys 2024"]
[Site "Leibnitz"]
[Date "2024.03.28"]
[Round "7.8"]
[White "Hofstadler, Mario"]
[Black "Haralcic, Edin"]
[Result "1-0"]
[ECO "D36"]
[WhiteElo "2104"]
[BlackElo "1861"]
[Annotator "RC"]
[PlyCount "106"]
[EventDate "2024.03.23"]
[EventType "swiss"]
[EventCountry "AUT"]
[SourceTitle "playchess.com"]
[Source "ChessBase"]
[SourceQuality "1"]
[TimeControl "5400+30"]

1. d4 {[%emt 0:00:06]} Nf6 {[%emt 0:00:12]} 2. Nf3 {[%emt 0:00:29]} e6 {[%emt 0:00:28]} 3. c4 {[%emt 0:00:06]} d5 {[%emt 0:00:13]} 4. cxd5 {[%emt 0:00:58]} exd5 {[%emt 0:00:18]} 5. Nc3 {[%emt 0:00:08]} c6 {[%emt 0:02:23]} 6. Bg5 {[%emt 0:00:24]} Be7 {[%emt 0:00:24]} 7. e3 {[%emt 0:00:07]} Nbd7 {[%emt 0:02:09]} 8. Bd3 {[%emt 0:02:22]} O-O {[%emt 0:00:29]} 9. Qc2 {[%emt 0:00:38]} h6 {[%emt 0:01:19]} 10. Bf4 {[%emt 0:09:07]} Nb6 {[%emt 0:20:33]} 11. O-O {[%emt 0:04:50]} Bd6 {[%emt 0:05:51]} 12. Bg3 {[%emt 0:05:44]} Bxg3 {[%emt 0:01:19]} 13. hxg3 {[%emt 0:02:07]} Be6 {[%emt 0:07:00]} 14. b4 {[%emt 0:06:37]} Rc8 {[%emt 0:09:04]} 15. a4 {[%emt 0:02:31]} Qe7 {[%emt 0:01:55]} 16. Rab1 {[%emt 0:02:04]} Nbd7 {[%emt 0:06:26]} 17. Rfc1 {[%emt 0:06:16]} Rfd8 {[%emt 0:08:55]} 18. Nh4 {[%emt 0:08:50]} a6 {[%emt 0:07:06]} 19. Re1 {[%emt 0:09:05]} Nb6 {[%emt 0:04:58]} 20. Nf3 {[%emt 0:03:29]} Nbd7 {[%emt 0:06:14]} 21. Nd2 {[%emt 0:04:20]} b5 {[%emt 0:03:21]} 22. a5 {[%emt 0:00:44]} Ne8 {[%emt 0:02:53]} 23. e4 {[%emt 0:02:29]} dxe4 {[%emt 0:00:21]} 24. Ncxe4 {[%emt 0:00:46]} Nef6 {[%emt 0:00:52]} 25. Nc5 {[%emt 0:04:07]} Nxc5 {[%emt 0:00:27]} 26. dxc5 {[%emt 0:00:08]} Qd7 {[%emt 0:08:20]} 27. Re3 {[%emt 0:01:38]} Nd5 {[%emt 0:00:00]} 28. Bh7+ {[%emt 0:07:15]} Kh8 {[%emt 0:00:00]} 29. Rxe6 {[%emt 0:00:31]} fxe6 {[%emt 0:00:00]} 30. Nf3 {[%emt 0:00:17]} g5 {[%emt 0:00:00]} 31. Bg6 {[%emt 0:05:14]} Qg7 {[%emt 0:00:00]} 32. Re1 {[%emt 0:00:59]} Rf8 {[%emt 0:01:01]} 33. Rxe6 {[%emt 0:05:04]} Rf6 {[%emt 0:00:25]} 34. Rxf6 {[%emt 0:01:32]} Qxf6 {[%emt 0:00:13]} 35. Qe4 {[%emt 0:00:59]} Nxb4 {[%emt 0:01:03]} 36. Bf5 {[%emt 0:01:53]} Rf8 {[%emt 0:00:47]} 37. g4 {[%emt 0:00:19]} Nd5 {[%emt 0:00:14]} 38. Nd4 {[%emt 0:00:10]} Ne7 {[%emt 0:00:45]} 39. g3 {[%emt 0:01:34]} Nxf5 {[%emt 0:00:35]} 40. gxf5 {[%emt 0:00:07]} Rd8 {[%emt 0:00:47]} 41. Nxc6 {[%emt 0:00:38]} Rc8 {[%emt 0:00:56]} 42. Nd4 {[%emt 0:01:32]} b4 {[%emt 0:00:30]} 43. Ne6 {[%emt 0:00:37]} b3 {[%emt 0:00:17]} 44. Qb7 {[%emt 0:00:08]} Re8 {[%emt 0:00:55]} 45. Qxb3 {[%emt 0:00:19]} Qa1+ {[%emt 0:00:28]} 46. Kh2 {[%emt 0:00:15]} Qf6 {[%emt 0:00:14]} 47. c6 {[%emt 0:00:18]} h5 {[%emt 0:00:36]} 48. c7 {[%emt 0:01:06]} h4 {[%emt 0:00:29]} 49. Qb8 {[%emt 0:00:49]} hxg3+ {[%emt 0:00:16]} 50. Kg2 {[%emt 0:00:48]} Rxb8 {[%emt 0:00:55]} 51. cxb8=Q+ {[%emt 0:03:26]} Kh7 {[%emt 0:00:03]} 52. Qb7+ {[%emt 0:00:00]} Kh6 {[%emt 0:00:28]} 53. Qb1 {[%emt 0:00:00]} g4 {[%emt 0:00:44]} 1-0